bitfinex-derivatives/quotes_BTCF0:USTF0_20250913
["timestamp","ask_amount","ask_price","bid_price","bid_amount"]
[1757801055560,0.10259595,115950.0,115940.0,1.1931575]
[1757801055858,0.09037601,115950.0,115940.0,1.1931575]
[1757801056352,0.51434711,115960.0,115950.0,0.03543]
[1757801056858,0.52729711,115960.0,115950.0,0.02151]
[1757801057056,0.77729711,115960.0,115940.0,1.1588875]
[1757801057259,0.1720019,115950.0,115940.0,1.1588875]
[1757801057659,0.10259595,115950.0,115940.0,1.1728075]
[1757801058160,0.48329698,115960.0,115950.0,0.03543]
[1757801058458,0.12249698,115960.0,115950.0,0.03543]
[1757801058659,0.12249698,115960.0,115950.0,0.39623]
[1757801059160,0.01990103,115960.0,115950.0,0.39623]
[1757801059559,0.12249698,115960.0,115950.0,0.39623]
[1757801059961,0.04297103,115960.0,115950.0,0.39623]
[1757801060155,0.12249698,115960.0,115950.0,0.39623]
[1757801060861,0.01990103,115960.0,115950.0,0.51623]
[1757801061059,0.04297103,115960.0,115950.0,0.39623]
[1757801061359,0.12249698,115960.0,115950.0,0.39623]
[1757801062359,0.12249698,115960.0,115950.0,0.81899]
[1757801062659,0.04297103,115960.0,115950.0,0.81899]
[1757801062860,0.12249698,115960.0,115950.0,1.17979]
[1757801063062,0.04297103,115960.0,115950.0,1.17979]
[1757801063362,0.12249698,115960.0,115950.0,1.17979]
[1757801064568,0.04297103,115960.0,115950.0,0.03543]
[1757801064770,0.12249698,115960.0,115950.0,1.18007]
[1757801065065,0.12249698,115960.0,115950.0,0.81927]
[1757801065260,0.13586698,115960.0,115950.0,0.03543]
[1757801065451,0.49666698,115960.0,115950.0,0.80587]
[1757801065858,0.52237487,115960.0,115950.0,0.80587]
[1757801066763,0.16157487,115960.0,115950.0,0.80587]
[1757801068362,0.24112156,115960.0,115950.0,0.80587]
[1757801069663,0.08204892,115960.0,115950.0,0.80587]
[1757801069971,0.24112156,115960.0,115950.0,0.81877]
[1757801072166,0.20785053,115960.0,115950.0,1.28957]
[1757801072366,0.10524421,115960.0,115950.0,1.42957]
[1757801072566,0.10524421,115960.0,115950.0,2.01910632]
[1757801072967,0.02570789,115960.0,115950.0,2.01910632]
[1757801073270,0.07953632,115980.0,115970.0,0.03514]
[1757801073568,0.42175114,116010.0,116000.0,0.03514]
[1757801073765,0.03444,116000.0,115990.0,0.02224]
[1757801073966,0.68003017,116000.0,115990.0,0.02224]
[1757801074168,0.93003017,116000.0,115990.0,0.02224]
[1757801074674,0.93003017,116000.0,115980.0,0.7854]
[1757801074866,0.55431264,115990.0,115980.0,0.80764]
[1757801075068,0.58002599,115990.0,115980.0,0.80764]
[1757801077776,0.21922599,115990.0,115980.0,0.82054]
[1757801078074,0.58002599,115990.0,115980.0,0.82054]
[1757801078569,0.50048967,115990.0,115980.0,0.82054]
[1757801079072,0.58002599,115990.0,115980.0,0.82054]
[1757801080474,0.40758335,115990.0,115980.0,0.82054]
[1757801080674,0.56665599,115990.0,115980.0,0.82054]
[1757801082174,0.48711967,115990.0,115980.0,0.82054]
[1757801084869,0.56665599,115990.0,115980.0,0.82054]
[1757801085170,0.48711967,115990.0,115980.0,0.82054]
[1757801085873,0.40758335,115990.0,115980.0,0.82054]
[1757801086073,0.56665599,115990.0,115980.0,0.82054]
[1757801087474,0.12631967,115990.0,115980.0,0.82054]
[1757801096184,0.12631967,115990.0,115980.0,0.82026]
[1757801096390,0.56665599,115990.0,115980.0,0.82022]
[1757801096695,0.56665599,115990.0,115980.0,0.03514]
[1757801096888,0.57961599,115990.0,115980.0,0.03514]
[1757801097086,0.57961599,115990.0,115980.0,0.82022]
[1757801100296,0.57961599,115990.0,115980.0,0.02224]
[1757801100486,0.57961599,115990.0,115960.0,0.3737]
[1757801100487,0.01296,115980.0,115960.0,0.3737]
[1757801100794,0.13954967,115980.0,115970.0,0.80666]
[1757801101690,0.06001335,115980.0,115970.0,0.80666]
[1757801101991,0.21908599,115980.0,115970.0,0.80666]
[1757801102192,0.57988599,115980.0,115970.0,0.80666]
[1757801102694,0.57988599,115980.0,115970.0,0.81934]
[1757801105305,0.42081335,115980.0,115970.0,0.81934]
[1757801105491,0.57988599,115980.0,115970.0,0.81934]
[1757801107897,0.21908599,115980.0,115970.0,0.81934]
[1757801109599,0.57988599,115980.0,115970.0,0.81934]
[1757801128310,0.57988599,115980.0,115970.0,0.80666]
[1757801128511,0.57988599,115980.0,115970.0,0.80646]
[1757801129616,0.57988599,115980.0,115970.0,0.02146]
[1757801129915,0.03656,115970.0,115960.0,0.02194]
[1757801130116,0.58214599,115970.0,115960.0,0.8069]
[1757801130511,0.50260982,115970.0,115960.0,0.8069]
[1757801131228,0.50260982,115970.0,115960.0,0.02194]
[1757801131410,0.50260982,115970.0,115960.0,0.80698]
[1757801141822,0.50260982,115970.0,115960.0,0.82043]
[1757801143020,0.12847982,115970.0,115960.0,0.82043]
[1757801150129,0.04894335,115970.0,115960.0,0.83761347]
[1757801150325,0.02571335,115970.0,115960.0,0.83761347]
[1757801150525,0.07953647,115970.0,115960.0,0.83761347]
[1757801150731,0.02571335,115970.0,115960.0,1.34761347]
[1757801150926,0.02571335,115970.0,115960.0,1.70841347]
[1757801151226,0.48282534,115980.0,115970.0,0.03538]
[1757801151430,0.50861833,115980.0,115970.0,0.03538]
[1757801152225,0.53966846,115980.0,115970.0,0.03538]
[1757801155029,0.53966946,115980.0,115970.0,0.03538]
[1757801160436,0.14781933,115980.0,115970.0,0.28538]
[1757801164140,0.14782684,115980.0,115970.0,0.28538]
[1757801168443,0.06829037,115980.0,115970.0,0.28538]
[1757801168639,0.04589037,115980.0,115970.0,0.64618]
[1757801168848,0.12542684,115980.0,115970.0,0.64618]
[1757801170345,0.04589037,115980.0,115970.0,0.39618]
[1757801170551,0.04589037,115980.0,115970.0,1.34571647]
[1757801171250,0.04589037,115980.0,115970.0,1.26618]
[1757801174752,0.04589037,115980.0,115970.0,1.27484747]
[1757801176655,0.04589037,115980.0,115970.0,1.26618]
[1757801178048,0.04589037,115980.0,115970.0,1.27500816]
[1757801182552,0.04589037,115980.0,115970.0,1.26618]
[1757801182858,0.04589037,115980.0,115970.0,1.66894]
[1757801183156,0.04589037,115980.0,115970.0,1.6689]
[1757801183356,0.12542684,115980.0,115970.0,1.6689]
[1757801185853,0.12542684,115980.0,115970.0,2.0089]
[1757801188465,0.04589037,115980.0,115970.0,2.0089]
[1757801188659,0.12542684,115980.0,115970.0,2.0089]
[1757801191766,0.04589037,115980.0,115970.0,2.0089]
[1757801192467,0.12538313,115980.0,115970.0,2.08839276]
[1757801196872,0.12538313,115980.0,115970.0,2.0089]
[1757801197068,0.12538313,115980.0,115970.0,2.08839276]
[1757801198073,0.09958163,115980.0,115970.0,2.08839276]
[1757801198272,0.12533932,115980.0,115970.0,2.08839276]
[1757801199376,0.12533932,115980.0,115970.0,1.50839276]
[1757801200174,0.12533932,115980.0,115970.0,1.85839276]
[1757801206080,0.12533932,115980.0,115970.0,1.7789]
[1757801206278,0.12533932,115980.0,115970.0,1.46839276]
[1757801208685,0.12533932,115980.0,115970.0,1.78839276]
[1757801213292,0.12535004,115980.0,115970.0,1.78839276]
[1757801218606,0.04585728,115980.0,115970.0,1.78839276]
[1757801218902,0.12535004,115980.0,115970.0,1.78839276]
[1757801230003,0.10526117,115980.0,115970.0,1.78839276]
[1757801230408,0.02576841,115980.0,115970.0,1.78839276]
[1757801230610,0.10526117,115980.0,115970.0,1.78839276]
[1757801238813,0.10526117,115980.0,115970.0,1.7089]
[1757801239015,0.10526117,115980.0,115970.0,1.78839276]
[1757801239819,0.10526117,115980.0,115970.0,1.7089]
[1757801240018,0.10526117,115980.0,115970.0,1.78839276]
[1757801243017,0.10526117,115980.0,115970.0,1.78659276]
[1757801244422,0.10526117,115980.0,115970.0,1.00567276]
[1757801244617,0.12846117,115980.0,115970.0,1.35655276]
[1757801246625,0.12846117,115980.0,115970.0,0.49618]
[1757801246824,0.12846117,115980.0,115970.0,1.25655276]
[1757801247228,0.20795393,115980.0,115970.0,1.25655276]
[1757801247423,0.20795393,115980.0,115970.0,1.17706]
[1757801250017,0.20795393,115980.0,115970.0,1.25655276]
[1757801250221,0.12846117,115980.0,115970.0,1.25655276]
[1757801252227,0.02576841,115980.0,115970.0,1.25655276]
[1757801252429,0.10526117,115980.0,115970.0,1.25655276]
[1757801254333,0.10526746,115980.0,115970.0,1.17706]
[1757801257032,0.10526746,115980.0,115970.0,1.29706]
[1757801258435,0.1255315,115980.0,115970.0,1.29706]
[1757801267343,0.1255315,115980.0,115970.0,1.17706]
[1757801280658,0.1485315,115980.0,115970.0,0.39618]
[1757801281261,0.7720015,115980.0,115970.0,0.81602]
[1757801281466,0.85150055,115980.0,115970.0,0.81602]
[1757801283667,0.7720015,115980.0,115970.0,0.81602]
[1757801284358,0.67983245,115980.0,115970.0,0.81602]
[1757801284560,0.4863315,115980.0,115970.0,0.81602]
[1757801285366,0.04603245,115980.0,115970.0,0.81602]
[1757801286770,0.1255315,115980.0,115970.0,0.81602]
[1757801287071,0.1485315,115980.0,115970.0,0.81602]
[1757801292181,0.06903245,115980.0,115970.0,0.81602]
[1757801292476,0.1485315,115980.0,115970.0,0.81602]
[1757801293076,0.1255315,115980.0,115970.0,0.81602]
[1757801293377,0.1485315,115980.0,115970.0,0.81602]
[1757801297881,0.1255315,115980.0,115970.0,0.81602]
[1757801298281,0.1485315,115980.0,115970.0,0.81602]
[1757801316406,0.22803347,115980.0,115970.0,0.81602]
[1757801320309,0.22803347,115980.0,115970.0,0.89552051]
[1757801323712,0.20503347,115980.0,115970.0,0.89552051]
[1757801325817,0.12553296,115980.0,115970.0,0.89552051]
[1757801326421,0.14882296,115980.0,115970.0,0.89552051]
[1757801327724,0.14882296,115980.0,115970.0,0.81602]
[1757801327912,0.14882296,115980.0,115970.0,0.89552051]
[1757801328318,0.22832347,115980.0,115970.0,0.81602]
[1757801329324,0.22832347,115980.0,115970.0,0.81598]
[1757801342032,0.22832347,115980.0,115970.0,1.17678]
[1757801344631,0.22832347,115980.0,115970.0,1.25628051]
[1757801349834,0.04603245,115980.0,115970.0,1.25628051]
[1757801350138,0.20503347,115980.0,115970.0,1.25628051]
[1757801351738,0.22796347,115980.0,115970.0,1.25628051]
[1757801356641,0.06896245,115980.0,115970.0,0.47568051]
[1757801356840,0.22796347,115980.0,115970.0,1.25616051]
[1757801358036,0.22796347,115980.0,115970.0,0.39618]
[1757801358239,0.22796347,115980.0,115970.0,0.89536051]
[1757801358438,0.22796347,115980.0,115970.0,0.81586]
[1757801358942,0.04603245,115980.0,115970.0,1.17666]
[1757801359141,0.20503347,115980.0,115970.0,1.17666]
[1757801359340,0.12553296,115980.0,115970.0,1.25616051]
[1757801359737,0.10526892,115980.0,115970.0,1.36616051]
[1757801359943,0.10526892,115980.0,115970.0,1.84616051]
[1757801362538,0.02576841,115980.0,115970.0,1.84616051]
[1757801362938,0.10526892,115980.0,115970.0,1.84616051]
[1757801378358,0.02576841,115980.0,115970.0,1.84614991]
[1757801385760,0.02576841,115980.0,115970.0,1.92614991]
[1757801387460,0.02576841,115980.0,115970.0,1.84666]
[1757801387961,0.02576841,115980.0,115970.0,1.84614991]
[1757801391463,0.02576841,115980.0,115970.0,1.86360891]
[1757801394866,0.10269991,115990.0,115980.0,0.0346]
[1757801395068,0.12848357,115990.0,115980.0,0.9054]
[1757801398768,0.12848357,115990.0,115980.0,1.23568]
[1757801402364,0.12848357,115990.0,115980.0,0.0946]
[1757801402668,0.75241357,115990.0,115980.0,0.80179]
[1757801402858,0.75241357,115990.0,115980.0,0.02155]
[1757801403059,0.75241357,115990.0,115980.0,0.80179]
[1757801403267,0.75241357,115990.0,115980.0,0.02155]
[1757801403461,0.75241357,115990.0,115980.0,0.78024]
[1757801403768,0.75241357,115990.0,115980.0,0.80179]
[1757801411673,0.75241357,115990.0,115980.0,0.81484]
[1757801413767,0.7834637,115990.0,115980.0,0.81484]
[1757801414177,0.7834637,115990.0,115980.0,0.80179]
[1757801414473,0.75241357,115990.0,115980.0,0.80179]
[1757801416980,0.72662991,115990.0,115980.0,0.80179]
[1757801417181,0.75242412,115990.0,115980.0,0.80179]
[1757801418781,0.78347425,115990.0,115980.0,0.80179]
[1757801418980,0.75242412,115990.0,115980.0,0.80179]
[1757801419281,0.67293421,115990.0,115980.0,0.80179]
[1757801419481,0.75242412,115990.0,115980.0,0.80179]
[1757801420681,0.75242412,115990.0,115980.0,0.81484]
[1757801422385,0.78347425,115990.0,115980.0,0.81484]
[1757801422886,0.75242412,115990.0,115980.0,0.81484]
[1757801431987,0.78347425,115990.0,115980.0,0.81484]
[1757801434090,0.78347425,115990.0,115980.0,0.80179]
[1757801439293,0.53347425,115990.0,115980.0,0.80179]
[1757801440395,0.45398434,115990.0,115980.0,0.80179]
[1757801440695,0.53348351,115990.0,115980.0,0.80179]
[1757801444194,0.53348351,115990.0,115980.0,0.80163]
[1757801444799,0.61298268,115990.0,115980.0,0.80163]
[1757801444993,0.61298268,115990.0,115980.0,0.02155]
[1757801445297,0.61298268,115990.0,115980.0,0.71339]
[1757801454304,0.61298268,115990.0,115980.0,0.02155]
[1757801454494,0.61298268,115990.0,115980.0,0.80159]
[1757801455105,0.58718847,115990.0,115980.0,0.80159]
[1757801455401,0.61296629,115990.0,115980.0,0.80159]
[1757801461106,0.45396795,115990.0,115980.0,0.80159]
[1757801461307,0.61296629,115990.0,115980.0,0.80159]
[1757801463607,0.53346712,115990.0,115980.0,0.80159]
[1757801481515,0.55391571,115990.0,115980.0,0.80159]
[1757801481816,0.63341488,115990.0,115980.0,0.80159]
[1757801489317,0.63341488,115990.0,115980.0,0.02155]
[1757801489516,0.63341488,115990.0,115980.0,0.70947]
[1757801499026,0.63341488,115990.0,115980.0,0.02155]
[1757801499624,0.99421488,115990.0,115980.0,0.02155]
[1757801502623,0.91472789,115990.0,115980.0,0.02155]
[1757801506126,0.94805097,115990.0,115980.0,0.03445]
[1757801509228,0.96139097,115990.0,115980.0,0.03445]
[1757801509625,0.88187962,115990.0,115980.0,0.03445]
[1757801509824,0.96139097,115990.0,115980.0,0.03445]
[1757801513131,0.91495535,115990.0,115980.0,0.03445]
[1757801516234,0.96139097,115990.0,115980.0,0.03445]
[1757801522740,0.93034084,115990.0,115980.0,0.03445]
[1757801527437,0.93034084,115990.0,115980.0,0.02155]
[1757801533547,0.01321,115980.0,115960.0,0.0312415]
[1757801533753,0.42621962,115980.0,115970.0,0.02262]
[1757801533945,0.4520149,115980.0,115970.0,0.02262]
[1757801534146,0.4520149,115980.0,115970.0,0.27262]
[1757801534852,0.53152625,115980.0,115970.0,0.27262]
[1757801541263,0.6110376,115980.0,115970.0,0.27262]
[1757801541955,0.53152625,115980.0,115970.0,0.27262]
[1757801558760,0.50049663,115980.0,115970.0,0.27262]
[1757801559364,0.50049663,115980.0,115970.0,0.02262]
[1757801560370,0.53152625,115980.0,115970.0,0.02262]
[1757801562670,0.50049663,115980.0,115970.0,0.02262]
[1757801564373,0.58000954,115980.0,115970.0,0.02262]
[1757801566074,0.21920954,115980.0,115970.0,0.02262]
[1757801566273,0.58000954,115980.0,115970.0,0.02262]
[1757801567265,0.61103916,115980.0,115970.0,0.02262]
[1757801571578,0.58000954,115980.0,115970.0,0.02262]
[1757801573177,0.61103916,115980.0,115970.0,0.02262]
[1757801579778,0.61113147,115980.0,115970.0,0.02262]
[1757801580085,0.45210721,115980.0,115970.0,0.02262]
[1757801580273,0.61113147,115980.0,115970.0,0.02262]
[1757801584285,0.61113146,115980.0,115970.0,0.02262]
[1757801586389,0.58010184,115980.0,115970.0,0.02262]
[1757801593895,0.61113146,115980.0,115970.0,0.02262]
[1757801601813,0.58010184,115980.0,115970.0,0.02262]
[1757801602012,0.61113146,115980.0,115970.0,0.02262]
[1757801615325,0.58524388,115980.0,115970.0,0.02262]
[1757801615523,0.6110539,115980.0,115970.0,0.02262]
[1757801622123,0.45202964,115980.0,115970.0,0.02262]
[1757801622327,0.6110539,115980.0,115970.0,0.02262]
[1757801626530,0.53154099,115980.0,115970.0,0.02262]
[1757801632033,0.53154099,115980.0,115970.0,0.03538]
[1757801632233,0.45202964,115980.0,115970.0,0.03538]
[1757801632434,0.53154099,115980.0,115970.0,0.03538]
[1757801632833,0.45202964,115980.0,115970.0,0.03538]
[1757801633035,0.53154099,115980.0,115970.0,0.03538]
[1757801635639,0.53154099,115980.0,115970.0,0.02262]
[1757801645345,0.53154099,115980.0,115970.0,0.03547]
[1757801645545,0.07801964,115980.0,115970.0,0.03547]
[1757801646444,0.15753099,115980.0,115970.0,0.03547]
[1757801651048,0.15754781,115980.0,115970.0,0.03547]
[1757801651345,0.07803646,115980.0,115970.0,0.03547]
[1757801651544,0.04700684,115980.0,115970.0,0.36498135]
[1757801651750,0.04700684,115980.0,115970.0,0.28547]
[1757801656051,0.12651819,115980.0,115970.0,0.28547]
[1757801656852,0.04700684,115980.0,115970.0,0.28547]
[1757801658657,0.12651819,115980.0,115970.0,0.28547]
[1757801662762,0.12651819,115980.0,115970.0,1.06463]
[1757801663163,0.12651819,115980.0,115970.0,0.28547]
[1757801663363,0.12651819,115980.0,115970.0,1.06463]
[1757801664569,0.04700684,115980.0,115970.0,1.06463]
[1757801664769,0.12651819,115980.0,115970.0,1.06463]
[1757801666772,0.12651819,115980.0,115970.0,0.28547]
[1757801666974,0.12651819,115980.0,115970.0,1.06463]
[1757801671878,0.04700684,115980.0,115970.0,1.06463]
[1757801672079,0.12651819,115980.0,115970.0,1.06463]
[1757801679285,0.12651819,115980.0,115970.0,0.81463]
[1757801686395,0.1265041,115980.0,115970.0,0.89412726]
[1757801688596,0.1265041,115980.0,115970.0,0.81463]
[1757801688798,0.1265041,115980.0,115970.0,0.89412726]
[1757801691504,0.1265041,115980.0,115970.0,0.81463]
[1757801691698,0.1265041,115980.0,115970.0,0.89412726]
[1757801691897,0.1265041,115980.0,115970.0,0.81463]
[1757801692100,0.1265041,115980.0,115970.0,0.89412726]
[1757801693003,0.15753372,115980.0,115970.0,0.89412726]
[1757801693603,0.1265041,115980.0,115970.0,0.89412726]
[1757801697010,0.1265041,115980.0,115970.0,0.81463]
[1757801697207,0.04700684,115980.0,115970.0,0.89412726]
[1757801697409,0.1265041,115980.0,115970.0,0.89412726]
[1757801702612,0.1265041,115980.0,115970.0,0.11496726]
[1757801702913,0.1265041,115980.0,115970.0,0.89400726]
[1757801703911,0.1265041,115980.0,115970.0,0.03547]
[1757801704110,0.1265041,115980.0,115970.0,0.89400726]
[1757801704906,0.1265041,115980.0,115970.0,0.03547]
[1757801705116,0.20600136,115980.0,115970.0,0.81447]
[1757801705423,0.20600136,115980.0,115970.0,0.03547]
[1757801705711,0.20600136,115980.0,115970.0,0.81451]
[1757801706811,0.21933136,115980.0,115970.0,0.81451]
[1757801707016,0.21933136,115980.0,115970.0,0.80166]
[1757801707916,0.21933136,115980.0,115970.0,0.80162]
[1757801709919,0.21933136,115980.0,115970.0,0.02262]
[1757801710120,0.21933136,115980.0,115970.0,0.80162]
[1757801711522,0.21933136,115980.0,115970.0,0.02262]
[1757801711721,0.21933136,115980.0,115970.0,0.80162]
[1757801713224,0.21933136,115980.0,115970.0,0.81436]
[1757801713424,0.21933136,115980.0,115970.0,0.80162]
[1757801714128,0.21933136,115980.0,115970.0,0.81436]
[1757801716833,0.20600136,115980.0,115970.0,0.81436]
[1757801721440,0.20600136,115980.0,115970.0,0.89385726]
[1757801727040,0.20600136,115980.0,115970.0,0.81436]
[1757801727239,0.20600136,115980.0,115970.0,0.89385726]
[1757801727941,0.20600136,115980.0,115970.0,0.11485726]
[1757801728143,0.20600136,115980.0,115970.0,0.89381726]
[1757801733046,0.23703098,115980.0,115970.0,0.89381726]
[1757801733447,0.20600136,115980.0,115970.0,0.89381726]
[1757801734449,0.20600136,115980.0,115970.0,0.89377726]
[1757801738454,0.04700684,115980.0,115970.0,0.89377726]
[1757801738640,0.20600136,115980.0,115970.0,0.89377726]
[1757801742759,0.20600136,115980.0,115970.0,0.89373726]
[1757801743752,0.20600136,115980.0,115970.0,0.81424]
[1757801743956,0.20600136,115980.0,115970.0,0.89373726]
[1757801748361,0.12650903,115980.0,115970.0,0.81424]
[1757801749259,0.12650903,115980.0,115970.0,0.8142]
[1757801756362,0.12650903,115980.0,115970.0,0.03536]
[1757801756556,0.12650903,115980.0,115970.0,0.8142]
[1757801764067,0.12647952,115980.0,115970.0,0.8142]
[1757801770968,0.04697733,115980.0,115970.0,0.8142]
[1757801771169,0.12647952,115980.0,115970.0,0.8142]
[1757801776172,0.12647952,115980.0,115970.0,0.03536]
[1757801776373,0.12647952,115980.0,115970.0,0.81412]
[1757801778771,0.46899171,115980.0,115970.0,0.02262]
[1757801779075,0.46899171,115980.0,115960.0,0.81718007]
[1757801779076,0.03455,115970.0,115960.0,0.81718007]
[1757801779279,0.52099883,115970.0,115960.0,0.81718007]
[1757801780372,0.77099883,115970.0,115960.0,0.81718007]
[1757801780577,0.80202845,115970.0,115960.0,0.81718007]
[1757801781279,0.80202845,115970.0,115960.0,0.81818007]
[1757801787184,0.77099883,115970.0,115960.0,0.81818007]
[1757801799285,0.52099883,115970.0,115960.0,0.81818007]
[1757801805793,0.42848664,115970.0,115960.0,0.83081007]
[1757801807197,0.50798883,115970.0,115960.0,0.83081007]
[1757801808397,0.53901845,115970.0,115960.0,0.83081007]
[1757801810499,0.53903075,115970.0,115960.0,0.83081007]
[1757801818003,0.17823075,115970.0,115960.0,0.83081007]
[1757801818205,0.53903075,115970.0,115960.0,0.83081007]
[1757801819101,0.50800113,115970.0,115960.0,0.83081007]
[1757801820601,0.52101113,115970.0,115960.0,0.83081007]
[1757801825814,0.52113773,115970.0,115960.0,0.83081007]
[1757801828812,0.55216735,115970.0,115960.0,0.83081007]
[1757801831513,0.52113773,115970.0,115960.0,0.83081007]
[1757801831714,0.55216735,115970.0,115960.0,0.83081007]
[1757801837027,0.63168184,115970.0,115960.0,0.81818007]
[1757801837823,0.63168184,115970.0,115960.0,0.03946007]
[1757801838020,0.63168184,115970.0,115960.0,0.77058007]
[1757801840823,0.60575791,115970.0,115960.0,0.77058007]
[1757801841023,0.63168779,115970.0,115960.0,0.02232]
[1757801843532,0.67812341,115970.0,115960.0,0.02232]
[1757801855238,0.67812341,115970.0,115960.0,0.001]
[1757801855439,0.92812341,115970.0,115960.0,0.001]
[1757801859440,0.67812341,115970.0,115960.0,0.001]
[1757801870053,0.64709379,115970.0,115960.0,0.001]
[1757801870351,0.56760477,115970.0,115960.0,0.001]
[1757801872051,1.34620477,115970.0,115960.0,0.001]
[1757801872247,1.59620477,115970.0,115960.0,0.001]
[1757801872454,0.03603,115940.0,115930.0,0.8323113]
[1757801872753,0.14149984,115940.0,115930.0,1.0723113]
[1757801873144,0.15015182,115940.0,115930.0,1.0723113]
[1757801873450,0.14149984,115940.0,115930.0,1.0723113]
[1757801873648,0.12769984,115940.0,115930.0,1.0723113]
[1757801873853,0.12769984,115940.0,115930.0,1.0753113]
[1757801874048,0.12769984,115940.0,115930.0,1.0793113]
[1757801875552,0.13622047,115940.0,115930.0,1.0793113]
[1757801885850,0.49702047,115940.0,115930.0,1.0793113]
[1757801890358,0.50980047,115940.0,115930.0,0.8086]
[1757801908577,0.50980047,115940.0,115930.0,0.02996]
[1757801908774,0.50980047,115940.0,115930.0,0.68728]
[1757801914788,0.54081243,115940.0,115930.0,0.68728]
[1757801923299,0.58733037,115940.0,115930.0,0.68728]
[1757801923998,0.58733037,115940.0,115930.0,0.02996]
[1757801926496,0.50779041,115940.0,115930.0,0.02996]
[1757801926705,0.58733037,115940.0,115930.0,0.02996]
[1757801930503,0.74652024,115940.0,115930.0,0.02996]
[1757801932904,0.71550828,115940.0,115930.0,0.02996]
[1757801933305,0.74650934,115940.0,115930.0,0.02996]
[1757801941815,0.74701432,115940.0,115930.0,0.02996]
[1757801948016,0.50828449,115940.0,115930.0,0.02996]
[1757801948219,0.74701432,115940.0,115930.0,0.02996]
[1757801961436,1.10781432,115940.0,115930.0,0.02996]
[1757801963338,1.07681326,115940.0,115930.0,0.02996]
[1757801973249,1.10782596,115940.0,115930.0,0.02996]
[1757801979556,1.06130802,115940.0,115930.0,0.007]
[1757801979756,0.0223,115910.0,115900.0,0.0346]
[1757801979945,0.18145322,115910.0,115900.0,0.3846]
[1757801980149,0.20788808,115910.0,115900.0,0.3846]
[1757801980957,0.27652084,115910.0,115900.0,0.3846]
[1757801981353,0.28946084,115910.0,115900.0,0.3846]
[1757801981755,0.28946084,115910.0,115900.0,0.3866]
[1757801982651,0.19694423,115910.0,115900.0,0.3866]
[1757801986262,0.11736762,115910.0,115900.0,0.3866]
[1757801986451,0.19694423,115910.0,115900.0,0.3866]
[1757801990461,0.19695806,115910.0,115900.0,0.3866]
[1757802002271,0.11736762,115910.0,115900.0,0.3866]
[1757802002572,0.19695806,115910.0,115900.0,0.3866]
[1757802006576,0.11736762,115910.0,115900.0,0.3866]
[1757802006773,0.19695806,115910.0,115900.0,0.3866]
[1757802014983,0.11736762,115910.0,115900.0,0.3866]
[1757802015182,0.19695806,115910.0,115900.0,0.3866]
[1757802017084,0.11736762,115910.0,115900.0,0.3866]
[1757802017272,0.19695806,115910.0,115900.0,0.3866]
[1757802030401,0.11736762,115910.0,115900.0,0.3866]
[1757802030603,0.19695806,115910.0,115900.0,0.3866]
[1757802035501,0.09506762,115910.0,115900.0,0.3866]
[1757802035806,0.09506762,115910.0,115900.0,0.82699044]
[1757802038309,0.09506762,115910.0,115900.0,0.7474]
[1757802040502,0.02643486,115910.0,115900.0,1.09699044]
[1757802040903,0.07959044,115920.0,115910.0,0.01333]
[1757802041107,0.10608586,115920.0,115910.0,1.72253357]
[1757802042611,0.10708586,115920.0,115910.0,1.72253357]
[1757802043111,0.10708586,115920.0,115910.0,1.35253357]
[1757802048515,0.10708586,115920.0,115910.0,1.43212401]
[1757802048715,0.02749542,115920.0,115910.0,1.89212401]
[1757802049110,0.02749542,115920.0,115910.0,1.81253357]
[1757802050313,0.02749542,115920.0,115910.0,1.03273357]
[1757802050516,0.02749542,115920.0,115910.0,1.81245357]
[1757802050717,0.10708586,115920.0,115910.0,1.03273357]
[1757802050911,0.10708586,115920.0,115910.0,1.48261357]
[1757802052416,0.10706469,115920.0,115910.0,1.56218284]
[1757802055915,0.10706469,115920.0,115910.0,0.78230284]
[1757802056119,0.10706469,115920.0,115910.0,1.56234284]
[1757802057120,0.10706469,115920.0,115910.0,0.78230284]
[1757802057324,0.10706469,115920.0,115910.0,1.56226284]
[1757802058519,0.10706469,115920.0,115910.0,0.78230284]
[1757802058724,0.10706469,115920.0,115910.0,1.56222284]
[1757802060224,0.02749542,115920.0,115910.0,1.56222284]
[1757802060423,0.10706469,115920.0,115910.0,1.56222284]
[1757802061026,0.10706469,115920.0,115910.0,0.78230284]
[1757802061226,0.10706469,115920.0,115910.0,1.56234284]
[1757802062222,0.10706469,115920.0,115910.0,0.70273357]
[1757802062431,0.18663396,115920.0,115910.0,1.56234284]
[1757802068428,0.18663396,115920.0,115910.0,1.48277357]
[1757802068633,0.18663396,115920.0,115910.0,1.56234284]
[1757802073038,0.02749542,115920.0,115910.0,1.56234284]
[1757802073236,0.18663396,115920.0,115910.0,1.56234284]
[1757802073936,0.18663396,115920.0,115910.0,1.20154284]
[1757802074139,0.18663396,115920.0,115910.0,1.56234284]
[1757802088445,0.02749542,115920.0,115910.0,1.56234284]
[1757802088647,0.18663396,115920.0,115910.0,1.56234284]
[1757802092148,0.18663396,115920.0,115910.0,1.48277357]
[1757802092337,0.18663396,115920.0,115910.0,1.56234284]
[1757802095850,0.18663668,115920.0,115910.0,1.56234284]
[1757802099352,0.10706741,115920.0,115910.0,1.56234284]
[1757802101755,0.10706741,115920.0,115910.0,1.48277357]
[1757802101954,0.10706741,115920.0,115910.0,1.56234284]
[1757802102957,0.10706741,115920.0,115910.0,1.48277357]
[1757802103358,0.18663668,115920.0,115910.0,1.56234284]
[1757802103959,0.10706741,115920.0,115910.0,1.48277357]
[1757802104351,0.18663668,115920.0,115910.0,1.48277357]
[1757802109359,0.18663668,115920.0,115910.0,0.70273357]
[1757802109560,0.20792668,115920.0,115910.0,1.48285357]
[1757802109957,0.20792668,115920.0,115910.0,0.70273357]
[1757802110160,0.20792668,115920.0,115910.0,1.48285357]
[1757802114362,0.12836934,115920.0,115910.0,1.48285357]
[1757802115359,0.04878814,115920.0,115910.0,1.48285357]
[1757802115658,0.12836934,115920.0,115910.0,1.48285357]
[1757802120160,0.04878814,115920.0,115910.0,1.48285357]
[1757802120366,0.12836934,115920.0,115910.0,1.48285357]
[1757802129475,0.20795054,115920.0,115910.0,0.70273357]
[1757802129676,0.20795054,115920.0,115910.0,1.12177357]
[1757802130478,0.12836934,115920.0,115910.0,1.12177357]
[1757802137483,0.20795054,115920.0,115910.0,1.12177357]
[1757802137683,0.20795054,115920.0,115910.0,1.12165357]
[1757802139889,0.20795054,115920.0,115910.0,0.83165357]
[1757802140384,0.22134054,115920.0,115910.0,0.83165357]
[1757802142581,0.22134054,115920.0,115910.0,0.83169357]
[1757802143190,0.22134054,115920.0,115910.0,0.05193357]